bitfinex/quotes_ETHUSD_20251125
["timestamp","ask_amount","ask_price","bid_price","bid_amount"]
[1764103063023,40.21483346,2937.3,2937.2,0.001]
[1764103063322,19.66721711,2937.0,2936.9,0.001]
[1764103063486,20.68114436,2937.0,2936.9,0.001]
[1764103063691,23.74403283,2937.0,2936.9,0.001]
[1764103063912,23.84403283,2937.0,2936.9,0.001]
[1764103064085,23.30735283,2937.0,2936.9,0.001]
[1764103064289,22.08673036,2937.0,2936.9,0.001]
[1764103064518,31.70485681,2937.0,2936.9,0.001]
[1764103064689,12.84057881,2937.0,2936.9,0.001]
[1764103064890,34.12178134,2937.0,2936.9,0.001]
[1764103065090,28.48255834,2937.0,2936.9,0.001]
[1764103065723,11.61995634,2937.0,2936.9,0.001]
[1764103065923,28.31737834,2937.0,2936.9,0.001]
[1764103066223,27.77472234,2937.0,2936.9,0.001]
[1764103066528,27.91123156,2937.0,2936.9,0.001]
[1764103066728,27.81123156,2937.0,2936.9,0.001]
[1764103066922,33.25050555,2937.0,2936.9,0.001]
[1764103067115,34.47112802,2937.0,2936.9,0.001]
[1764103067591,33.25050555,2937.0,2936.9,0.001]
[1764103067790,30.95034555,2937.0,2936.9,0.001]
[1764103068025,14.23784544,2937.0,2936.9,0.001]
[1764103068229,15.5572231,2937.0,2936.9,0.001]
[1764103068730,14.33784544,2937.0,2936.9,0.001]
[1764103068896,22.42330044,2937.0,2936.9,0.001]
[1764103069100,21.54050944,2937.0,2936.9,0.001]
[1764103069298,20.95074541,2937.0,2936.9,0.001]
[1764103069807,22.84800641,2937.0,2936.9,0.001]
[1764103070305,30.34880826,2937.0,2936.6,0.001]
[1764103070505,37.79983452,2936.7,2936.6,0.001]
[1764103070710,42.56163452,2936.7,2936.6,0.001]
[1764103070913,27.36230952,2936.7,2936.6,0.001]
[1764103071330,26.14355313,2936.7,2936.6,0.001]
[1764103071504,26.24355313,2936.7,2936.6,0.001]
[1764103071939,12.02087813,2936.7,2936.6,0.001]
[1764103072141,42.42610112,2936.7,2936.6,0.001]
[1764103072924,17.49009054,2936.7,2936.6,0.001]
[1764103073126,22.88798265,2936.7,2936.6,0.001]
[1764103073323,22.07448712,2936.7,2936.6,0.001]
[1764103074048,31.98248312,2936.7,2936.6,0.001]
[1764103074958,42.42610112,2936.7,2936.6,0.001]
[1764103075729,41.97859612,2936.7,2936.6,0.001]
[1764103075947,12.42610112,2936.7,2936.6,0.001]
[1764103076154,34.093504,2936.2,2936.1,0.001]
[1764103076317,1.13109811,2935.3,2934.5,0.0787]
[1764103076654,0.405504,2935.1,2934.5,0.0787]
[1764103076949,3.40727111,2934.9,2934.5,0.1574]
[1764103077153,0.72559411,2935.0,2934.5,0.1574]
[1764103077316,0.217,2934.8,2934.6,0.0787]
[1764103077518,0.217,2934.8,2934.7,0.0787]
[1764103079144,3.62438721,2934.8,2934.7,0.0787]
[1764103081352,0.217,2934.8,2934.7,0.0787]
[1764103081857,0.217,2934.8,2934.7,0.1574]
[1764103082056,0.72559411,2935.5,2934.7,3.56490332]
[1764103082357,0.72559411,2935.5,2935.4,0.0787]
[1764103082617,0.31695699,2935.5,2935.4,0.0787]
[1764103082759,0.217,2935.5,2935.4,0.1574]
[1764103082960,0.217,2935.5,2935.4,0.0787]
[1764103083146,3.40669074,2935.4,2935.0,0.0787]
[1764103083559,3.40669074,2935.4,2935.3,0.0787]
[1764103083866,1.13109811,2935.3,2934.5,0.1574]
[1764103084051,0.3171496,2935.2,2934.5,0.1574]
[1764103084252,0.217,2935.1,2934.5,0.1574]
[1764103085165,6.81431004,2935.0,2934.5,0.1574]
[1764103085464,3.6240539,2935.1,2934.5,0.1574]
[1764103085663,3.40665528,2935.5,2934.5,0.1574]
[1764103085664,1.13109811,2935.6,2935.0,0.0787]
[1764103085868,0.93996837,2935.5,2935.4,0.001]
[1764103086228,7.80446968,2935.5,2935.4,0.001]
[1764103087185,11.21104436,2935.5,2935.4,0.001]
[1764103087388,6.76108036,2935.5,2935.4,0.001]
[1764103087681,25.60238936,2935.5,2935.4,0.001]
[1764103087843,24.76082351,2935.5,2935.4,0.001]
[1764103088240,27.84108835,2935.5,2935.4,0.001]
[1764103088469,42.07155135,2935.5,2935.4,0.001]
[1764103088676,28.83170836,2935.5,2935.4,0.001]
[1764103089342,15.14432636,2935.5,2935.4,0.001]
[1764103089546,16.01278836,2935.5,2935.4,0.001]
[1764103090158,1.13109811,2935.4,2935.1,0.001]
[1764103090379,15.95351906,2935.2,2935.1,0.001]
[1764103090574,16.30043063,2935.2,2935.1,0.001]
[1764103090781,3.77960363,2935.2,2935.1,0.001]
[1764103091078,7.43167363,2935.2,2935.1,0.001]
[1764103091370,6.96952649,2935.2,2935.1,0.001]
[1764103091577,5.18222454,2935.2,2935.1,0.001]
[1764103091791,0.53446437,2935.2,2935.1,0.1584]
[1764103092866,0.31746437,2935.2,2935.1,0.1584]
[1764103093095,0.217,2935.2,2935.1,0.1584]
[1764103093241,0.53446437,2935.2,2935.1,0.1584]
[1764103093648,0.53446437,2935.2,2935.1,0.0797]
[1764103094350,3.94138723,2935.2,2935.1,0.0797]
[1764103094545,3.94138723,2935.2,2935.1,0.001]
[1764103095111,3.94138723,2935.2,2935.1,0.0797]
[1764103095375,0.53446437,2935.2,2935.1,0.001]
[1764103095574,0.53446437,2935.2,2935.1,0.0797]
[1764103095780,3.94138723,2935.2,2935.1,0.0797]
[1764103095990,0.53446437,2935.2,2935.1,0.1584]
[1764103096168,0.53446437,2935.2,2935.1,0.0797]
[1764103096562,3.94138723,2935.2,2935.1,0.0797]
[1764103096882,0.53446437,2935.2,2935.1,0.0797]
[1764103097783,3.94138723,2935.2,2935.1,0.001]
[1764103098800,0.53446437,2935.2,2935.1,0.1584]
[1764103099451,0.53446437,2935.2,2935.1,0.0797]
[1764103099999,0.31746437,2935.2,2935.1,0.1584]
[1764103100150,0.53446437,2935.2,2935.1,3.56543894]
[1764103100350,0.31746437,2935.2,2935.1,3.56543894]
[1764103100655,0.217,2935.6,2935.1,10.37951682]
[1764103100850,0.31898815,2935.5,2935.4,0.0787]
[1764103101050,0.31898815,2935.5,2935.2,0.0787]
[1764103101252,0.31898815,2935.5,2935.4,0.0787]
[1764103101655,0.31898815,2935.6,2935.4,0.1574]
[1764103101982,0.217,2935.7,2935.6,0.0787]
[1764103102182,0.31891326,2935.7,2935.6,3.48515864]
[1764103102384,0.217,2936.0,2935.6,6.97031728]
[1764103102583,0.31878931,2935.9,2935.6,0.0787]
[1764103102748,0.217,2936.0,2935.7,0.0787]
[1764103102749,0.31878931,2935.8,2935.7,0.0787]
[1764103103153,0.31878931,2935.9,2935.7,0.1574]
[1764103103353,0.217,2936.0,2935.7,0.0787]
[1764103103354,0.31878931,2935.8,2935.7,0.0787]
[1764103103571,0.31878931,2935.9,2935.7,0.1574]
[1764103103783,0.31878931,2935.8,2935.4,0.0787]
[1764103103955,0.217,2936.0,2935.9,0.0787]
[1764103104489,0.3186996,2936.0,2935.9,0.1574]
[1764103104656,0.5356996,2936.0,2935.9,3.56351056]
[1764103104858,0.217,2936.0,2935.9,3.56351056]
[1764103105166,0.217,2936.0,2935.9,0.1574]
[1764103105569,0.217,2936.0,2935.9,0.0787]
[1764103105973,0.53541282,2936.0,2935.9,0.0787]
[1764103106174,0.217,2936.0,2935.9,0.0787]
[1764103111194,0.72559411,2935.9,2935.4,0.001]
[1764103111378,1.24841418,2935.8,2935.4,0.001]
[1764103111570,0.31811418,2935.7,2935.4,0.001]
[1764103111766,0.217,2935.6,2935.4,0.001]
[1764103111967,3.40657468,2935.5,2935.4,0.001]
[1764103112195,4.33687468,2935.5,2935.4,0.001]
[1764103112493,11.94500334,2935.5,2935.4,0.001]
[1764103112672,12.67797327,2935.5,2935.4,0.001]
[1764103112880,12.21097327,2935.5,2935.4,0.001]
[1764103113202,0.002,2936.1,2935.4,0.0797]
[1764103113508,0.217,2936.0,2935.5,0.0787]
[1764103113669,0.31812764,2935.9,2935.5,0.0787]
[1764103113885,0.31812764,2935.9,2935.5,3.56394417]
[1764103114501,0.31812764,2935.9,2935.8,0.0787]
[1764103114993,0.217,2936.0,2935.8,0.0787]
[1764103115196,0.217,2936.0,2935.9,0.0787]
[1764103116962,0.002,2936.1,2935.9,0.0787]
[1764103117179,0.217,2936.0,2935.9,0.0787]
[1764103120097,0.53540134,2936.0,2935.9,0.0787]
[1764103122426,0.53740134,2936.0,2935.9,0.0787]
[1764103123030,0.002,2936.0,2935.9,3.56351056]
[1764103123404,0.002,2936.3,2936.0,5.57669994]
[1764103123602,0.002,2936.3,2936.2,0.0787]
[1764103124018,0.002,2936.3,2936.2,0.1574]
[1764103124528,0.002,2936.3,2936.2,3.56316255]
[1764103128728,0.002,2936.3,2936.2,3.48446255]
[1764103128933,0.002,2936.3,2936.2,0.0787]
[1764103129118,0.002,2936.3,2936.0,3.40599455]
[1764103131407,0.002,2936.3,2935.4,14.99347805]
[1764103131734,0.002,2936.3,2935.6,0.0787]
[1764103132815,0.002,2936.3,2935.7,6.8126852]
[1764103133136,0.219,2936.3,2935.7,6.8126852]
[1764103133837,0.219,2936.3,2936.2,0.0787]
[1764103134037,0.219,2936.3,2935.8,0.0787]
[1764103134232,0.219,2936.3,2935.7,6.8126852]
[1764103135848,0.219,2936.3,2935.6,6.81291728]
[1764103137951,0.219,2936.3,2935.6,10.21937592]
[1764103138147,0.002,2936.3,2935.6,6.81291728]
[1764103138351,0.002,2936.3,2935.6,10.29807592]
[1764103139828,0.002,2936.3,2936.2,0.0787]
[1764103140353,0.002,2936.3,2936.2,3.48446255]
[1764103140929,0.002,2936.3,2936.2,3.40576255]
[1764103141519,0.002,2936.3,2935.7,6.8126852]
[1764103141858,0.6747,2935.8,2935.5,0.001]
[1764103142062,0.002,2936.3,2935.5,3.4075148]
[1764103142358,0.002,2936.3,2935.7,6.8126852]
[1764103142542,0.002,2936.3,2936.2,0.0787]
[1764103142750,0.002,2936.3,2935.7,6.8126852]
[1764103143066,0.002,2936.3,2935.7,10.2190278]
[1764103143268,0.002,2936.3,2935.7,6.8126852]
[1764103143467,0.002,2936.3,2935.7,10.2190278]
[1764103143671,0.002,2936.3,2935.7,6.8126852]
[1764103144162,0.002,2936.3,2935.7,10.2190278]
[1764103144367,0.002,2936.3,2936.2,0.0787]
[1764103144537,0.002,2936.3,2935.7,10.2190278]
[1764103144538,0.9507,2936.3,2935.7,6.8126852]
[1764103145443,0.9507,2936.3,2935.7,3.4063426]
[1764103145649,0.78531116,2936.2,2935.7,3.4063426]
[1764103145944,0.6747,2935.8,2935.5,3.40753544]
[1764103146149,0.482,2935.6,2935.5,3.40753544]
[1764103146343,0.6594,2935.8,2935.5,0.001]
[1764103147661,0.1927,2935.8,2935.5,0.001]
[1764103148057,0.002,2936.3,2935.7,0.0787]
[1764103148371,0.002,2936.3,2936.2,0.0787]
[1764103148559,0.002,2936.3,2935.8,6.89115316]
[1764103148764,0.002,2936.3,2935.8,3.40622658]
[1764103149070,0.7873155,2936.3,2935.8,3.40622658]
[1764103149371,0.3186155,2936.2,2935.8,6.81245316]
[1764103150765,0.3186155,2936.2,2935.5,6.81414936]
[1764103151078,0.002,2936.3,2935.5,10.29942404]
[1764103151377,0.32072119,2936.3,2935.6,0.0787]
[1764103151782,0.002,2936.3,2936.2,0.0787]
[1764103152377,0.484,2936.3,2935.5,10.22072404]
[1764103152674,0.484,2936.3,2935.5,10.29942404]
[1764103153074,0.002,2936.3,2936.2,0.0787]
[1764103153786,0.002,2936.3,2935.6,0.0787]
[1764103154275,0.002,2936.3,2935.5,10.22072404]
[1764103154678,0.002,2936.3,2935.6,0.0787]
[1764103154886,0.002,2936.3,2936.2,0.0787]
[1764103156188,0.002,2936.3,2936.0,0.0787]
[1764103156189,0.484,2936.3,2935.7,10.2190278]
[1764103156495,0.482,2936.1,2935.7,6.8126852]
[1764103156962,0.482,2936.1,2935.5,3.40754418]
[1764103158108,0.31922914,2936.0,2935.5,3.40754418]
[1764103158419,0.31922914,2936.0,2935.5,0.001]
[1764103158707,0.31922914,2935.9,2935.5,0.001]
[1764103158879,0.219,2936.1,2935.5,0.03506574]
[1764103159081,0.31923782,2936.0,2935.5,0.001]
[1764103159280,0.31923782,2935.9,2935.5,0.001]
[1764103159594,0.219,2936.1,2935.5,0.001]
[1764103159798,0.31928323,2936.0,2935.5,0.001]
[1764103160006,0.31928323,2935.9,2935.5,0.001]
[1764103160201,0.219,2936.1,2935.5,0.001]
[1764103160508,0.31927378,2936.0,2935.5,0.001]
[1764103160808,0.31927378,2935.9,2935.5,0.001]
[1764103161008,0.31927296,2935.8,2935.5,0.001]
[1764103161211,0.80187296,2935.8,2935.5,0.001]
[1764103161527,0.4826,2935.8,2935.5,0.001]
[1764103161912,0.31925693,2935.7,2935.5,0.001]
[1764103162308,0.4826,2935.8,2935.5,0.001]
[1764103162677,0.1947,2935.9,2935.5,0.001]
[1764103162877,0.31922475,2935.8,2935.5,0.001]
[1764103165117,0.002,2936.1,2935.7,0.0787]
[1764103165335,0.002,2936.1,2936.0,3.48469455]
[1764103165727,0.002,2936.1,2936.0,3.59745449]
[1764103165928,0.002,2936.1,2936.0,4.28898866]
[1764103167606,0.002,2936.1,2936.0,4.21028866]
[1764103168337,0.002,2936.1,2936.0,3.48469455]
[1764103171339,0.002,2936.1,2936.0,3.56339455]
[1764103171709,0.002,2936.1,2936.0,3.48469455]
[1764103172342,0.002,2936.1,2936.0,4.21028866]
[1764103172662,0.002,2936.1,2936.0,4.28898866]
[1764103172863,0.002,2936.1,2936.0,4.21028866]
[1764103174028,0.002,2936.1,2936.0,4.28898866]
[1764103174960,0.002,2936.1,2936.0,4.21028866]
[1764103175173,0.002,2936.1,2936.0,4.28898866]
[1764103177228,0.002,2936.1,2936.0,4.21028866]
[1764103177664,0.002,2936.1,2936.0,3.48469455]
[1764103185274,0.002,2936.1,2936.0,3.56339455]
[1764103185474,0.002,2936.1,2936.0,3.48469455]
[1764103185977,0.002,2936.1,2936.0,3.56339455]
[1764103188095,0.002,2936.1,2936.0,3.40599455]
[1764103188389,0.002,2936.1,2936.0,3.48469455]
[1764103191766,0.002,2936.1,2936.0,3.56339455]
[1764103192854,0.002,2936.1,2936.0,3.48469455]
[1764103194856,0.002,2936.1,2936.0,3.56339455]
[1764103195060,0.002,2936.1,2936.0,9.68527076]
[1764103195307,0.002,2936.3,2936.2,4.71556066]
[1764103195308,1e-08,2936.3,2936.2,4.71556066]
[1764103195542,1e-08,2936.3,2936.2,4.79426066]
[1764103195742,1e-08,2936.3,2936.2,7.22469145]
[1764103196100,1e-08,2936.3,2936.2,4.79426066]
[1764103197416,1e-08,2936.7,2936.6,0.484204]
[1764103197617,1e-08,2936.7,2936.6,5.7919821]
[1764103197830,1e-08,2936.7,2936.6,5.8706821]
[1764103198815,1e-08,2936.7,2936.6,6.49627621]
[1764103199238,1e-08,2936.7,2936.6,6.59627621]
[1764103199417,1e-08,2936.7,2936.6,10.00157485]
[1764103200628,0.002,2937.5,2936.8,0.505504]
[1764103200829,0.002,2937.5,2936.8,0.584204]
[1764103201129,0.002,2937.5,2936.8,0.662904]
[1764103201639,0.002,2937.5,2936.8,4.79356484]
[1764103202153,0.4952,2937.3,2936.8,4.13066084]
[1764103202454,0.4952,2937.3,2936.8,4.20936084]
[1764103203019,0.002,2937.5,2936.8,4.20936084]
[1764103203327,0.002,2937.5,2936.8,4.69356484]
[1764103203532,0.002,2937.5,2936.8,4.79356484]
[1764103203733,0.002,2937.5,2936.8,4.8276155]
[1764103203934,0.002,2937.5,2936.8,4.79356484]
[1764103204337,0.002,2937.5,2936.8,4.69356484]
[1764103204967,0.4972,2937.5,2936.8,4.61486484]
[1764103205262,0.6522,2936.9,2936.8,4.13066084]
[1764103205460,0.002,2936.9,2936.8,4.13066084]
[1764103205862,0.002,2936.9,2936.8,4.20936084]
[1764103206156,1.1474,2936.9,2936.8,4.13066084]
[1764103207260,1.1474,2936.9,2936.8,3.40506673]
[1764103207866,1.1474,2936.9,2936.6,6.81059728]
[1764103208018,0.197,2936.9,2936.6,6.81059728]
[1764103208222,0.4552,2936.7,2936.6,3.40529864]
[1764103208624,0.9504,2936.7,2936.6,3.40529864]
[1764103212157,0.9504,2936.7,2936.3,6.8112015]
[1764103212336,0.4552,2936.5,2936.3,6.8112015]
[1764103212533,0.4552,2936.4,2936.3,3.40555494]
[1764103212924,0.9504,2936.4,2936.2,3.40572574]
[1764103213129,0.4552,2936.3,2936.2,3.40572574]
[1764103213329,0.9504,2936.3,2936.2,3.40572574]
[1764103213527,0.197,2936.9,2936.2,6.81148829]
[1764103213856,0.4552,2936.3,2936.2,3.40572574]
[1764103214268,0.9504,2936.3,2936.1,6.81174771]
[1764103214447,0.4552,2936.2,2936.1,3.40586917]
[1764103215591,0.9504,2936.2,2936.1,3.40586917]
[1764103216361,0.9504,2936.2,2936.0,0.001]
[1764103216538,0.9504,2936.1,2936.0,0.001]
[1764103217170,0.4552,2936.1,2936.0,0.001]
[1764103217673,0.9504,2936.1,2936.0,0.001]
[1764103220152,0.4552,2936.1,2936.0,0.001]
[1764103220495,0.9415,2936.1,2936.0,0.001]
[1764103222160,0.4552,2936.1,2936.0,0.001]
[1764103222352,0.9415,2936.1,2936.0,0.001]
[1764103224453,4.34737854,2936.1,2935.7,0.001]
[1764103224777,0.6194,2935.8,2935.7,0.001]
[1764103224977,0.4863,2935.7,2935.4,0.001]
[1764103225166,0.4929,2935.5,2935.4,3.40769074]
[1764103225398,0.4929,2935.5,2935.4,0.001]
[1764103225746,0.9792,2935.5,2935.4,0.001]
[1764103235592,1.1962,2935.5,2935.4,0.001]
[1764103237301,3.40583458,2936.2,2935.4,0.001]
[1764103237302,0.4863,2936.4,2935.4,0.0827]
[1764103237463,0.31775278,2936.3,2935.4,0.0827]
[1764103237666,0.4863,2936.3,2935.4,0.0827]
[1764103237867,0.4863,2936.3,2935.4,0.001]
[1764103239394,0.217,2936.2,2935.4,0.0827]
[1764103240992,0.217,2936.2,2935.5,10.21972404]
[1764103241188,0.4863,2936.3,2935.5,13.70799872]
[1764103241368,0.4863,2936.3,2935.5,10.21972404]
[1764103241696,0.217,2936.5,2935.5,10.21972404]
[1764103241697,0.4929,2935.6,2935.5,3.40657468]
[1764103241884,0.4929,2935.6,2935.4,0.001]
[1764103241885,0.6793,2935.6,2935.4,3.4076303]
[1764103242084,0.9792,2935.5,2935.4,3.4076303]
[1764103242487,0.9792,2935.5,2935.4,0.001]
[1764103242688,0.9792,2935.5,2935.4,3.40769074]
[1764103243200,0.9792,2935.5,2935.4,0.001]
[1764103243398,0.1864,2935.6,2935.4,0.001]
[1764103243600,0.4929,2935.5,2935.4,0.001]
[1764103244002,0.1864,2935.6,2935.4,0.001]
[1764103244178,0.1864,2935.9,2935.5,0.0817]
[1764103244385,0.6727,2935.9,2935.5,0.0817]
[1764103244770,0.6727,2935.9,2935.4,0.001]
[1764103245673,0.4863,2935.8,2935.4,0.001]
[1764103245877,0.4929,2935.5,2935.4,0.001]
[1764103247072,0.4863,2935.8,2935.4,0.001]
[1764103249106,0.4929,2935.5,2935.4,0.001]
[1764103250001,0.9792,2935.5,2935.4,0.001]
[1764103251820,0.002,2935.8,2935.4,0.001]
[1764103251990,0.4551,2935.5,2935.4,0.001]
[1764103252888,0.9251,2935.5,2935.4,0.001]
[1764103253521,0.4551,2935.5,2935.4,0.001]
[1764103254215,0.472,2935.8,2935.4,0.001]
[1764103254895,0.472,2935.8,2935.1,2.56329894]
[1764103255295,0.472,2935.8,2935.1,5.97033788]
[1764103255496,0.472,2935.8,2935.1,9.37737682]
[1764103258356,0.472,2935.8,2935.1,5.97033788]
[1764103259234,0.31918418,2935.7,2935.1,5.97033788]
[1764103259933,0.4823,2935.7,2935.1,9.37737682]
[1764103260503,0.4693,2935.2,2935.1,2.56329894]
[1764103260809,0.4823,2935.7,2935.1,5.97033788]
[1764103260998,0.4693,2935.2,2935.1,2.56329894]
[1764103261203,0.4693,2935.2,2934.9,6.81454222]
[1764103261627,0.002,2935.8,2935.1,0.0817]
[1764103261836,1.01756208,2935.7,2935.1,0.0817]
[1764103262039,0.31926208,2935.6,2935.1,0.0817]
[1764103262210,0.80156208,2935.6,2935.1,0.0817]
[1764103262413,0.216,2935.7,2935.2,6.81384572]
[1764103262617,0.3192695,2935.6,2935.2,6.81384572]
[1764103262962,0.8015695,2935.6,2935.2,6.81384572]
[1764103263135,0.4693,2935.3,2935.2,3.40692286]
[1764103263306,0.4823,2935.5,2935.2,6.81384572]
[1764103264107,0.4693,2935.3,2935.2,3.40692286]
[1764103265426,0.4693,2935.3,2935.1,3.40702776]
[1764103265625,0.4693,2935.2,2935.0,3.40714428]
[1764103265825,0.4823,2935.3,2935.0,3.40714428]
[1764103266142,0.4693,2935.1,2935.0,3.40714428]
[1764103266543,0.9516,2935.1,2934.8,0.001]
[1764103266755,0.6662,2934.9,2934.8,0.001]
[1764103267169,1.46768976,2934.9,2934.5,1.0]
[1764103267327,0.3079,2934.6,2934.5,0.5]
[1764103267524,4.25070919,2934.6,2934.5,0.5]
[1764103267725,4.73300919,2934.6,2934.5,0.5]
[1764103268146,1.32538976,2934.6,2934.5,0.5]
[1764103268661,4.51700919,2934.6,2934.5,0.5]
[1764103268843,4.73300919,2934.6,2934.5,0.5]
[1764103270239,5.4586033,2934.6,2934.5,0.5]
[1764103270474,1.13109811,2934.5,2933.1,6.8187242]
[1764103270766,0.405504,2934.3,2933.0,3.40943279]
[1764103270940,0.405504,2934.1,2933.0,3.40943279]
[1764103271260,0.31918976,2934.0,2933.0,3.40943279]
[1764103271562,0.4693,2933.1,2932.8,6.8194217]
[1764103272065,0.1969,2933.9,2933.0,0.4611]
[1764103272237,0.4139,2933.9,2933.4,0.4611]
[1764103273329,0.8962,2933.9,2933.5,3.40889722]
[1764103273663,0.4693,2933.6,2932.9,4.13515885]
[1764103273963,0.2382,2933.5,2932.9,4.13515885]
[1764103274161,0.2382,2933.5,2932.9,4.61725885]
[1764103274460,0.4823,2933.8,2932.9,4.61725885]
[1764103275035,0.4139,2933.9,2933.0,0.4821]
[1764103275230,0.8962,2933.9,2933.0,0.4821]
[1764103275431,0.8962,2933.9,2933.2,6.81849174]
[1764103275855,0.4823,2933.8,2933.2,6.81849174]
[1764103278652,0.4693,2933.3,2932.8,3.40971085]
[1764103278852,0.2382,2933.2,2932.8,3.40971085]
[1764103279057,0.2382,2933.2,2932.8,6.8194217]
[1764103279370,0.217,2933.4,2932.8,6.8194217]
[1764103279529,0.6993,2933.4,2932.7,6.81965424]
[1764103279864,0.217,2933.4,2932.7,10.71158136]
[1764103280363,0.217,2933.4,2932.7,7.30175424]
[1764103280663,0.4648,2933.3,2932.7,6.81965424]
[1764103280867,0.4648,2933.3,2932.7,10.22948136]
[1764103281162,0.4648,2933.3,2932.7,6.81965424]
[1764103281464,0.6574,2932.8,2932.4,6.82035192]
[1764103282757,0.6574,2932.8,2932.4,10.23052788]
[1764103282927,0.1882,2933.1,2932.4,13.90758268]
[1764103283133,0.1882,2933.1,2932.4,14.36378268]
[1764103283437,0.217,2933.4,2933.1,3.4093621]
[1764103284069,0.217,2933.4,2932.5,0.4562]
[1764103284070,0.4692,2933.2,2932.5,3.6770548]
[1764103284241,0.4692,2933.2,2931.8,3.41076535]
[1764103284242,0.2624,2933.1,2932.4,13.90758268]
[1764103284562,0.2624,2933.1,2932.4,10.23052788]
[1764103285066,0.2624,2933.1,2932.4,6.82035192]
[1764103285239,0.4648,2933.0,2932.4,6.82035192]
[1764103285632,0.4692,2932.5,2932.4,3.41017596]
[1764103285833,0.4692,2932.5,2932.2,6.82081712]
[1764103286049,0.4692,2932.5,2932.4,0.001]
[1764103287971,0.217,2932.7,2932.4,0.9564]
[1764103288866,0.217,2933.1,2932.4,0.9564]
[1764103289379,0.6818,2933.1,2932.4,0.9564]
[1764103289673,0.6818,2933.1,2932.5,3.41005967]
[1764103289876,0.4648,2933.0,2932.5,3.41005967]
[1764103290081,0.4692,2932.6,2932.5,3.41005967]
[1764103290888,0.4648,2932.9,2932.5,6.82011934]
[1764103291090,0.6818,2933.1,2932.5,6.82011934]
[1764103291873,0.6818,2933.1,2932.4,0.001]
[1764103292253,3.40884783,2933.6,2932.4,0.4572]
[1764103292488,0.99908212,2933.5,2932.4,0.4572]
[1764103292688,0.31728212,2933.4,2932.4,0.4572]
[1764103293013,0.78208212,2933.4,2932.4,0.4572]
[1764103293289,0.4648,2933.4,2932.4,0.001]
[1764103293453,0.4648,2933.3,2932.4,0.001]
[1764103294193,0.4648,2933.3,2932.4,10.23152788]
[1764103294891,0.4648,2933.3,2932.5,0.4562]
[1764103295383,0.4648,2933.3,2932.4,10.23152788]
[1764103296174,0.4648,2933.3,2932.4,3.41117596]
[1764103296175,0.31844347,2933.2,2932.4,3.41117596]
[1764103296601,0.31844347,2933.2,2932.5,0.4562]
[1764103296812,0.1969,2933.9,2933.1,0.4992]
[1764103296813,0.217,2933.4,2933.1,0.4992]
[1764103297313,0.1969,2933.9,2933.3,0.4992]
[1764103297479,0.53563362,2933.8,2933.3,0.4992]
[1764103297679,0.31863362,2933.7,2933.3,0.4992]
[1764103298078,0.002,2934.5,2933.3,6.81825928]
[1764103298331,0.4648,2934.1,2933.3,7.27445928]
[1764103298531,0.31868698,2934.0,2933.3,7.27445928]
[1764103299003,0.1882,2933.9,2933.2,3.49093016]
[1764103299218,0.31868698,2933.8,2933.1,3.49102474]
[1764103299525,0.1882,2933.9,2933.1,3.94722474]
[1764103299679,0.50699477,2933.9,2933.1,3.94722474]
[1764103300075,0.31879477,2933.8,2933.1,10.76594894]
[1764103300905,0.31879477,2933.9,2933.7,0.4992]
[1764103301090,0.4648,2934.8,2933.8,0.4992]
[1764103301451,0.1882,2935.1,2934.4,0.6662]
[1764103301731,0.217,2935.2,2934.4,1.1224]
[1764103301936,0.3186956,2935.1,2934.4,1.1224]
[1764103302219,0.002,2935.6,2934.4,5.2558458]
[1764103302380,0.219,2935.6,2934.4,5.2558458]
[1764103302902,0.002,2935.6,2934.4,5.7613498]
[1764103303214,0.002,2935.6,2934.7,0.405504]
[1764103303514,0.002,2935.6,2934.8,0.94259411]
[1764103303716,0.002,2935.6,2934.8,1.39879411]
[1764103304012,0.002,2935.6,2934.9,0.4562]
[1764103304217,0.002,2935.6,2935.0,10.22146506]
[1764103304619,0.002,2935.6,2935.1,0.167]
[1764103305680,0.4692,2935.2,2935.0,6.81431004]
[1764103305884,0.4668,2935.6,2935.0,6.81431004]
[1764103306196,0.002,2935.6,2935.0,3.40715502]
[1764103306887,0.002,2935.6,2934.9,7.27071655]
[1764103307102,0.4668,2935.6,2934.9,6.81451655]
[1764103308158,0.4668,2935.6,2934.9,10.22178766]
[1764103309921,0.4668,2935.6,2934.9,10.67798766]
[1764103310738,0.002,2935.6,2935.0,0.478]
[1764103310940,0.002,2935.6,2935.5,0.4677]
[1764103312728,0.002,2935.6,2935.5,3.87427468]
[1764103314639,0.002,2935.6,2935.5,4.35227468]
[1764103315266,0.002,2935.6,2935.5,5.48337279]
[1764103315570,0.002,2935.8,2935.7,0.505504]
[1764103315785,0.002,2935.8,2935.7,0.973204]
[1764103315986,0.002,2935.8,2935.7,1.451204]
[1764103316171,0.002,2935.8,2935.7,4.7575466]
[1764103316352,0.002,2935.8,2935.7,5.58314071]
[1764103316745,0.002,2935.8,2935.7,5.48314071]
[1764103316984,0.002,2935.8,2935.7,5.58314071]
[1764103318282,0.002,2935.8,2935.7,5.69914071]
[1764103319960,0.002,2935.8,2935.7,5.79914071]
[1764103324258,0.002,2936.4,2936.2,0.405504]
[1764103324593,0.002,2936.4,2936.3,7.36807939]
[1764103324962,0.002,2936.4,2936.3,6.79617939]
[1764103325213,0.002,2936.4,2936.3,1.18149411]
[1764103325374,0.9292,2936.4,2935.9,0.216]
[1764103325580,0.2646,2936.2,2935.9,0.216]
[1764103325887,0.4546,2936.0,2935.9,4.13170467]
[1764103326095,0.4546,2936.0,2935.9,3.40611056]